bitfinex/quotes_ETHUSD_20240928
["timestamp","ask_amount","ask_price","bid_price","bid_amount"]
[1727514107717,0.2431,2671.2,2671.1,0.005]
[1727514107903,1.95467297,2671.3,2671.1,5.36066902]
[1727514108100,0.78140892,2671.5,2671.3,3.74349]
[1727514108298,0.78140892,2671.5,2671.4,3.74335]
[1727514108499,0.78140892,2671.6,2671.5,3.74321]
[1727514108930,0.78148005,2671.7,2671.5,4.53101]
[1727514109115,0.78148005,2671.8,2671.6,3.74298]
[1727514110811,0.78151518,2671.8,2671.7,3.74293]
[1727514111627,0.78151518,2671.8,2671.6,3.743]
[1727514111802,0.78151518,2671.7,2671.6,3.743]
[1727514111998,0.78151518,2671.8,2671.6,3.743]
[1727514112791,0.78151518,2671.7,2671.6,3.74307]
[1727514113747,0.78151518,2671.7,2671.5,4.53101]
[1727514114026,0.78151518,2671.6,2671.5,3.74321]
[1727514114394,1.17326405,2671.6,2671.3,3.74341]
[1727514114601,0.78143442,2671.4,2671.3,3.74341]
[1727514115123,1.17326405,2671.6,2671.3,3.74341]
[1727514115124,0.78143442,2671.5,2671.3,3.74341]
[1727514116999,0.78143442,2671.4,2671.3,3.74341]
[1727514117249,0.78143442,2671.5,2671.3,3.74341]
[1727514117536,0.78143442,2671.4,2671.3,3.74341]
[1727514119237,1.17326405,2671.5,2671.2,3.74362]
[1727514119438,0.78158503,2671.3,2671.1,3.74872]
[1727514119597,0.78158503,2671.3,2671.1,0.005]
[1727514119805,0.78158503,2671.2,2671.1,3.74877]
[1727514120012,0.78158503,2671.3,2671.1,3.74877]
[1727514120346,1.17326405,2671.4,2671.1,3.74877]
[1727514120347,1.17326405,2671.4,2671.2,3.74363]
[1727514121232,1.17326405,2671.4,2671.1,0.005]
[1727514121428,0.78154798,2671.2,2671.1,0.005]
[1727514121946,0.78154798,2671.2,2671.1,3.74877]
[1727514122154,0.78154798,2671.2,2671.1,0.005]
[1727514122312,0.2431,2671.2,2671.1,0.005]
[1727514122513,1.41636405,2671.2,2671.1,0.005]
[1727514122705,1.80882541,2671.2,2671.1,0.005]
[1727514124151,5.9414343,2671.2,2671.1,0.005]
[1727514124306,0.29310006,2671.2,2671.1,0.005]
[1727514124629,0.2431,2671.2,2671.1,0.005]
[1727514124829,0.05000006,2671.3,2671.1,0.005]
[1727514125214,1.95524672,2671.2,2671.1,0.005]
[1727514125616,1.56475499,2671.3,2671.2,3.74363]
[1727514125934,0.78243146,2671.5,2671.3,4.56618]
[1727514126136,0.78250165,2671.6,2671.4,7.15833235]
[1727514126449,1.17366823,2671.7,2671.5,3.74321]
[1727514126735,1.17366823,2671.6,2671.5,3.74321]
[1727514127346,0.78300442,2671.7,2671.6,3.74307]
[1727514127517,0.78300442,2672.0,2671.8,3.74279]
[1727514127844,1.17366823,2672.1,2672.0,3.74251]
[1727514127845,0.78300442,2672.1,2672.0,3.74251]
[1727514128145,1.17366823,2672.1,2672.0,3.74251]
[1727514128452,1.17366823,2672.1,2671.7,0.30748491]
[1727514128453,1.95524672,2672.1,2671.7,3.74283]
[1727514128745,1.56621326,2671.9,2671.6,4.56576]
[1727514128955,1.17478323,2671.7,2671.6,4.56576]
[1727514129120,1.17478323,2671.7,2671.6,0.8227]
[1727514129317,1.17478323,2671.7,2671.5,3.74312]
[1727514130205,1.17478323,2671.6,2671.5,3.74312]
[1727514130630,1.56621326,2671.6,2671.4,3.74334]
[1727514130907,1.17491151,2671.5,2671.4,3.74334]
[1727514131455,1.56621326,2671.5,2671.3,7.15846235]
[1727514131638,1.17497418,2671.4,2671.2,3.74359]
[1727514131838,1.17498703,2671.4,2671.3,3.74349]
[1727514132224,1.17498703,2671.4,2671.3,7.15847235]
[1727514132428,0.7833969,2671.4,2671.3,7.15847235]
[1727514132951,0.7833969,2671.5,2671.4,3.74335]
[1727514133301,1.17498703,2671.5,2671.4,3.74335]
[1727514134014,1.17498703,2671.5,2671.1,0.7711]
[1727514134015,1.56621326,2671.5,2671.2,3.74355]
[1727514134208,1.56621326,2671.5,2671.1,7.92976235]
[1727514134209,1.17493966,2671.3,2671.1,7.92976235]
[1727514134445,0.78327621,2671.2,2671.1,7.16366235]
[1727514134647,0.78327621,2671.2,2671.1,3.74868]
[1727514135249,0.78327621,2671.2,2671.1,7.16366235]
[1727514137566,0.78327621,2671.2,2671.1,8.63102859]
[1727514137795,1.17493966,2671.4,2671.2,3.74363]
[1727514137796,0.78327621,2671.3,2671.2,3.74363]
[1727514138062,0.78327621,2671.6,2671.5,3.74321]
[1727514140478,1.17493966,2671.6,2671.5,3.74321]
[1727514140664,0.78332693,2671.6,2671.5,3.74321]
[1727514140985,1.17493966,2671.6,2671.5,3.74321]
[1727514142384,1.17493966,2671.6,2671.4,3.74323]
[1727514142586,1.17493966,2671.5,2671.4,3.74335]
[1727514142766,1.17488898,2671.5,2671.4,3.74335]
[1727514143156,1.17485671,2671.5,2671.4,3.74335]
[1727514143558,1.17485671,2671.6,2671.5,3.74321]
[1727514143772,0.78327606,2671.6,2671.5,3.74321]
[1727514143940,0.78328396,2671.6,2671.5,3.74321]
[1727514144280,1.17485671,2671.7,2671.4,7.15832235]
[1727514144484,1.17485671,2671.7,2671.5,3.74321]
[1727514144669,0.78326518,2671.6,2671.5,3.74321]
[1727514144844,0.78326197,2671.6,2671.5,3.74321]
[1727514145183,0.78326927,2671.6,2671.5,3.74321]
[1727514145482,1.17485671,2671.7,2671.5,7.48624]
[1727514145679,1.17485671,2671.7,2671.6,3.74307]
[1727514145881,1.17480807,2671.7,2671.6,3.74307]
[1727514146181,1.17477339,2671.7,2671.6,3.74307]
[1727514146662,1.17481732,2671.7,2671.6,3.74307]
[1727514146872,1.17479778,2671.7,2671.5,3.74312]
[1727514147069,1.17471176,2671.6,2671.5,3.74312]
[1727514147452,1.56621326,2671.8,2671.5,3.74312]
[1727514147453,1.17471176,2671.7,2671.5,3.74312]
[1727514147643,1.17471176,2671.6,2671.5,3.74312]
[1727514149446,1.17471176,2671.7,2671.6,3.74307]
[1727514150093,1.17446952,2671.7,2671.6,3.74307]
[1727514150292,1.56621326,2671.7,2671.5,3.74312]
[1727514150661,1.1744836,2671.6,2671.5,3.74312]
[1727514152880,1.56621326,2671.7,2671.2,3.74359]
[1727514153102,0.78300237,2671.3,2671.2,3.74359]
[1727514153320,0.78300237,2671.4,2671.2,7.15857235]
[1727514153610,1.17450355,2671.4,2671.3,3.74349]
[1727514158170,1.56621326,2671.4,2671.2,3.74356]
[1727514158374,1.1748494,2671.3,2671.2,3.74356]
[1727514158610,1.17481206,2671.3,2671.2,3.74356]
[1727514158920,1.56621326,2671.4,2671.2,3.74356]
[1727514159093,1.17479764,2671.3,2671.2,3.74356]
[1727514159927,1.56621326,2671.4,2671.2,3.74356]
[1727514160131,1.17474476,2671.3,2671.2,3.74356]
[1727514161144,1.56621326,2671.4,2671.3,3.74349]
[1727514162631,1.95783755,2671.4,2671.2,3.74361]
[1727514162797,1.56619265,2671.3,2671.1,3.74866]
[1727514162997,1.17462598,2671.2,2671.1,3.74866]
[1727514168294,1.17462598,2671.3,2671.1,3.74866]
[1727514168838,1.17462598,2671.2,2671.1,3.74866]
[1727514170934,0.2431,2671.2,2671.1,0.005]
[1727514171101,1.80929265,2671.2,2671.1,0.005]
[1727514171302,4.03673006,2671.2,2671.1,0.005]
[1727514171501,0.29310006,2671.2,2671.1,0.005]
[1727514172017,0.2431,2671.2,2671.1,0.005]
[1727514173910,3.98673,2671.2,2671.1,0.005]
[1727514174113,0.29310006,2671.2,2671.1,0.005]
[1727514174317,1.74604736,2671.2,2671.1,0.005]
[1727514174645,1.74586704,2671.2,2671.1,0.005]
[1727514174850,4.09534886,2671.2,2671.1,0.005]
[1727514175048,0.29310006,2671.2,2671.1,0.005]
[1727514175346,1.74582901,2671.2,2671.1,0.005]
[1727514175550,0.29310006,2671.2,2671.1,0.005]
[1727514176251,1.74566672,2671.2,2671.1,0.005]
[1727514176419,0.29310006,2671.2,2671.1,0.005]
[1727514177036,6.03905035,2671.2,2671.1,0.005]
[1727514177238,12.16850199,2671.2,2671.1,0.005]
[1727514177409,9.37845414,2671.2,2671.1,0.005]
[1727514178452,14.83244814,2671.2,2671.1,0.005]
[1727514178755,19.81093279,2671.2,2671.1,0.005]
[1727514178919,19.81093279,2671.2,2671.1,0.00051555]
[1727514179114,16.5732431,2671.2,2671.1,0.00051555]
[1727514179417,11.1192491,2671.2,2671.1,0.00051555]
[1727514179613,8.82845414,2671.2,2671.1,0.00051555]
[1727514180051,11.17350076,2671.2,2671.1,0.00051555]
[1727514180212,4.42987076,2671.2,2671.1,0.00051555]
[1727514180569,0.68250391,2671.2,2671.1,0.00051555]
[1727514180878,2.63667461,2671.2,2671.1,0.00051555]
[1727514181228,2.63635624,2671.2,2671.1,0.00051555]
[1727514181428,2.24683512,2671.2,2671.1,0.00051555]
[1727514181817,2.2464877,2671.2,2671.1,0.00051555]
[1727514182017,2.24642743,2671.2,2671.1,0.00051555]
[1727514182416,4.03673006,2671.2,2671.1,0.00051555]
[1727514182855,6.03504082,2671.2,2671.1,0.00051555]
[1727514183058,4.97614265,2671.2,2671.1,0.00051555]
[1727514183617,8.767217,2671.2,2671.1,0.00051555]
[1727514183833,8.71721694,2671.2,2671.1,0.00051555]
[1727514185762,9.37411408,2671.2,2671.1,0.00051555]
[1727514186260,12.10773409,2671.2,2671.1,0.00051555]
[1727514186475,11.55871808,2671.2,2671.1,0.00051555]
[1727514186622,11.37411408,2671.2,2671.1,0.00051555]
[1727514187459,11.76593103,2671.2,2671.1,0.00051555]
[1727514188062,14.49797918,2671.2,2671.1,0.00051555]
[1727514188523,11.76593103,2671.2,2671.1,0.00051555]
[1727514188828,12.35318625,2671.2,2671.1,0.00051555]
[1727514193855,15.08291627,2671.2,2671.1,0.00051555]
[1727514194030,12.35318625,2671.2,2671.1,0.00051555]
[1727514194226,14.69296485,2671.2,2671.1,0.00051555]
[1727514194469,12.35318625,2671.2,2671.1,0.00051555]
[1727514195681,15.08291627,2671.2,2671.1,0.00051555]
[1727514195977,12.35318625,2671.2,2671.1,0.00051555]
[1727514196124,15.08291627,2671.2,2671.1,0.00051555]
[1727514196331,2.0,2670.9,2670.6,0.89820109]
[1727514196666,5.93720274,2670.7,2670.6,0.89820109]
[1727514196827,6.5372028,2670.7,2670.6,0.89820109]
[1727514197247,4.58743006,2670.7,2670.6,0.89820109]
[1727514197448,6.53703042,2670.7,2670.6,0.89820109]
[1727514198100,6.53719535,2670.7,2670.6,0.89820109]
[1727514200265,4.34433006,2670.7,2670.6,0.89820109]
[1727514200463,1.55963346,2670.7,2670.6,0.89820109]
[1727514200664,1.16959065,2670.7,2670.6,0.89820109]
[1727514201060,1.16960588,2670.7,2670.6,0.89820109]
[1727514201479,5.35389352,2670.8,2670.6,0.89820109]
[1727514201801,1.55963346,2670.7,2670.6,0.89820109]
[1727514202158,3.74433,2670.7,2670.6,0.89820109]
[1727514202453,5.74409535,2670.7,2670.6,0.89820109]
[1727514202653,5.74330674,2670.7,2670.6,0.89820109]
[1727514203399,5.74325026,2670.7,2670.6,0.89820109]
[1727514203899,6.29325026,2670.7,2670.6,0.89820109]
[1727514204758,4.34433006,2670.7,2670.6,0.89820109]
[1727514205103,11.76131079,2670.7,2670.6,0.89820109]
[1727514205263,11.71131073,2670.7,2670.6,0.89820109]
[1727514205760,12.10110607,2670.7,2670.6,0.09262089]
[1727514205962,14.10138311,2670.7,2670.6,0.09262089]
[1727514206260,13.7116867,2670.7,2670.6,0.09262089]
[1727514206459,11.3661246,2670.7,2670.6,0.09262089]
[1727514206657,13.70527716,2670.7,2670.6,0.09262089]
[1727514207267,13.70532913,2670.7,2670.6,0.09262089]
[1727514207600,11.36612918,2670.7,2670.6,0.09262089]
[1727514209007,11.12302918,2670.7,2670.6,0.09262089]
[1727514209156,9.68380039,2670.7,2670.6,0.09262089]
[1727514209653,11.12267405,2670.7,2670.6,0.09262089]
[1727514209857,13.46223285,2670.7,2670.6,0.09262089]
[1727514211287,11.36577405,2670.7,2670.6,0.09262089]
[1727514211602,14.58948398,2670.7,2670.6,0.09262089]
[1727514211756,11.36577405,2670.7,2670.6,0.09262089]
[1727514211957,18.53548398,2670.7,2670.6,0.09262089]
[1727514212154,16.31649534,2670.7,2670.6,0.09262089]
[1727514212380,11.36577405,2670.7,2670.6,0.09262089]
[1727514212564,14.58948398,2670.7,2670.6,0.09262089]
[1727514212765,14.58948398,2670.7,2670.6,0.01000906]
[1727514213380,31.46976105,2670.7,2670.6,0.01000906]
[1727514213709,33.1960944,2670.7,2670.6,0.01000906]
[1727514214003,37.06246156,2670.7,2670.6,0.01000906]
[1727514214217,2.0,2670.1,2670.0,0.1301005]
[1727514214398,28.53405021,2670.1,2670.0,0.1301005]
[1727514214567,30.66282387,2670.1,2670.0,0.1301005]
[1727514215093,31.79754311,2670.1,2670.0,0.1301005]
[1727514215301,18.87247825,2670.1,2670.0,0.1301005]
[1727514215483,22.4856556,2670.1,2670.0,0.1301005]
[1727514215671,19.2607489,2670.1,2670.0,0.1301005]
[1727514216212,22.4856556,2670.1,2670.0,0.1301005]
[1727514216409,17.5363756,2670.1,2670.0,0.1301005]
[1727514216569,19.2604871,2670.1,2670.0,0.1301005]
[1727514216972,17.5363756,2670.1,2670.0,0.1301005]
[1727514218008,14.7848056,2670.1,2670.0,0.1301005]
[1727514218220,17.1940166,2670.1,2670.0,0.1301005]
[1727514218815,14.7848056,2670.1,2670.0,0.1301005]
[1727514219301,17.51329601,2670.1,2670.0,0.1301005]
[1727514219910,17.51329601,2670.1,2670.0,0.01416502]
[1727514220700,17.9052497,2670.1,2670.0,0.01416502]
[1727514220907,17.90352993,2670.1,2670.0,0.01416502]
[1727514222011,21.84952993,2670.1,2670.0,0.01416502]
[1727514222308,17.90352993,2670.1,2670.0,0.01416502]
[1727514223179,29.66212693,2670.1,2670.0,0.01416502]
[1727514223813,6.74545,2669.9,2669.8,2.79752873]
[1727514224013,61.49132193,2669.9,2669.8,2.79752873]
[1727514224357,66.38050896,2669.9,2669.8,2.79752873]
[1727514224708,52.16465096,2669.9,2669.8,2.60082748]
[1727514224963,12.39648387,2669.9,2669.8,2.60082748]
[1727514225955,12.39648387,2669.9,2669.8,2.25540507]
[1727514225956,30.19435687,2669.9,2669.8,2.25540507]
[1727514226116,35.12992632,2669.9,2669.8,2.25540507]
[1727514226317,29.46498276,2669.9,2669.8,2.25540507]
[1727514226547,31.18319569,2669.9,2669.8,2.25540507]
[1727514226754,31.18319569,2669.9,2669.8,0.24903881]
[1727514227109,31.18319569,2669.9,2669.7,0.00080374]
[1727514227110,13.48469,2669.8,2669.7,0.00080374]
[1727514227327,13.48469,2669.8,2668.5,1.1594]
[1727514227328,3.74728,2668.6,2668.5,1.1594]
[1727514227514,4.57461928,2668.6,2668.5,1.1594]
[1727514228157,0.82733928,2668.6,2668.5,1.1594]
[1727514228315,3.79728006,2668.6,2668.5,1.1594]
[1727514229247,0.60000006,2668.6,2668.5,1.1594]
[1727514229442,4.34728006,2668.6,2668.5,1.1594]
[1727514230018,5.12461928,2668.6,2668.5,1.1594]
[1727514230217,4.34728006,2668.6,2668.5,1.1594]
[1727514230730,8.75638889,2668.6,2668.5,0.4]
[1727514230917,8.85092577,2668.6,2668.5,0.4]
[1727514231331,4.68593649,2668.6,2668.5,0.4]
[1727514231529,4.18593655,2668.6,2668.5,0.4]
[1727514231726,4.73593655,2668.6,2668.5,0.4]
[1727514232017,0.38865649,2668.6,2668.5,4.97892]
[1727514232231,4.57320831,2669.0,2668.6,0.8315]
[1727514232944,1.21507945,2669.0,2668.6,0.8315]
[1727514233312,1.16507939,2669.0,2668.8,3.74689]
[1727514233515,0.38861114,2669.0,2668.9,0.8315]
[1727514233752,3.0,2669.2,2668.9,0.8315]
[1727514233971,0.82646831,2669.3,2668.9,0.8315]
[1727514234133,0.05000006,2669.3,2668.9,4.57835]
[1727514234457,3.0,2669.2,2668.9,0.8315]
[1727514235220,6.74646,2669.2,2668.9,0.8315]
[1727514235436,6.79646006,2669.2,2668.9,0.8315]
[1727514235730,7.57292831,2669.2,2668.9,0.8315]
[1727514235916,0.39201048,2669.1,2668.9,0.8315]
[1727514236113,0.44201054,2669.1,2668.9,0.8315]
[1727514236720,4.18871054,2669.1,2668.9,0.8315]
[1727514237560,4.18867054,2669.1,2668.9,0.8315]
[1727514238691,0.39201048,2669.1,2668.9,0.8315]
[1727514240789,0.39201048,2669.1,2669.0,4.49982]
[1727514240972,4.91057928,2669.9,2669.3,0.7531]
[1727514240973,0.82646831,2669.8,2669.3,0.7531]
[1727514241178,0.05000006,2669.8,2669.5,0.7531]
[1727514241674,3.79563006,2669.8,2669.5,0.7531]
[1727514242258,3.74563,2669.8,2669.5,0.7531]
[1727514242555,0.77646825,2669.8,2669.5,0.7531]
[1727514242796,4.52206825,2669.8,2669.5,0.7531]
[1727514243572,3.74587,2669.6,2669.5,0.7531]
[1727514243787,4.52233825,2669.6,2669.5,0.7531]
[1727514243993,4.57233831,2669.6,2669.5,0.7531]
[1727514244477,0.82646831,2669.6,2669.0,0.7531]
[1727514244690,3.74624,2669.4,2669.0,0.7531]
[1727514244891,0.05000006,2669.3,2669.0,0.7531]
[1727514245404,3.74624,2669.4,2669.0,0.7531]
[1727514245590,0.05000006,2669.3,2669.0,0.7531]
[1727514246288,3.74658,2669.1,2669.0,0.7531]
[1727514246527,3.79658006,2669.1,2669.0,0.7531]
[1727514246729,0.77766465,2669.2,2669.0,0.7531]
[1727514246934,3.74658,2669.1,2669.0,0.7531]
[1727514247235,4.57424471,2669.1,2669.0,0.7531]
[1727514247531,3.7468,2669.0,2668.7,0.7531]
[1727514247688,4.52481939,2669.0,2668.7,0.7531]
[1727514248330,3.74694,2668.9,2668.7,0.7531]
[1727514248543,3.74694,2668.9,2668.5,1.1531]
[1727514248544,3.74716,2668.7,2668.5,1.1531]
[1727514248828,3.74728,2668.6,2668.5,1.1531]
[1727514249345,5.51226934,2668.6,2668.5,0.4]
[1727514249547,5.90195851,2668.6,2668.5,0.4]
[1727514249694,5.90327097,2668.6,2668.5,0.4]
[1727514250013,5.90322767,2668.6,2668.5,0.4]
[1727514250386,7.34728006,2668.6,2668.5,0.4]
[1727514251153,9.29215961,2668.6,2668.5,0.4]
[1727514251435,9.24247136,2668.6,2668.5,0.4]
[1727514251945,7.29728,2668.6,2668.5,0.4]
[1727514252248,7.59038006,2668.6,2668.5,0.4]
[1727514252392,3.05000006,2668.6,2668.5,3.74836021]
[1727514252592,0.77827573,2668.7,2668.5,4.98405623]
[1727514252854,0.77827573,2668.7,2668.6,4.52988]
[1727514253147,1.16730991,2669.6,2669.1,0.7826]
[1727514253292,3.16730991,2669.7,2669.2,3.41906021]
[1727514253773,1.16730991,2669.7,2669.2,3.41906021]
[1727514253930,4.91314991,2669.7,2669.2,3.41906021]
[1727514254143,1.16730991,2669.5,2669.1,0.7826]
[1727514254320,0.97920991,2669.5,2669.2,3.41906021]
[1727514254519,1.55644474,2669.8,2669.4,4.20166021]
[1727514254862,1.55644474,2670.0,2669.6,3.41906021]
[1727514255066,1.55644474,2670.0,2669.4,4.20166021]
[1727514255267,1.55644474,2669.9,2669.4,0.7826]
[1727514255560,1.55644474,2669.9,2669.4,7.94780021]
[1727514256215,1.55644474,2669.9,2669.4,11.69382021]
[1727514256622,1.55644474,2669.9,2669.4,7.94768021]
[1727514256831,1.55644474,2669.9,2669.4,11.69374021]
[1727514257123,1.55644474,2669.9,2669.4,7.94768021]
[1727514257769,1.55644474,2669.9,2669.4,11.69374021]
[1727514257971,1.55644474,2669.9,2669.4,7.94768021]
[1727514259042,1.55644474,2669.9,2669.6,3.41906021]
[1727514259235,1.55644474,2669.9,2669.8,3.41906021]
[1727514259476,1.55644474,2670.0,2669.8,3.41906021]
[1727514259775,4.94824755,2670.2,2669.8,3.41906021]
[1727514259776,1.55644474,2670.2,2669.8,7.16457021]
[1727514260098,3.94824755,2670.3,2670.0,3.41906021]
[1727514260099,3.55644474,2670.3,2670.0,3.41906021]
[1727514260378,1.55644474,2670.3,2670.0,3.41906021]
[1727514260531,1.55644474,2670.4,2670.1,4.52777]
[1727514260736,1.55644474,2670.5,2670.1,7.94683021]
[1727514261348,2.0,2670.6,2670.4,0.7826]
[1727514261756,3.74435,2670.7,2670.4,0.7826]
[1727514261955,4.13622139,2670.7,2670.4,0.7826]
[1727514262976,0.77839991,2670.6,2670.4,0.7826]
[1727514263693,0.39187139,2670.7,2670.4,4.52734]
[1727514263885,1.1702713,2670.7,2670.4,8.27199]
[1727514264086,1.1702713,2670.7,2670.6,4.52707]
[1727514264087,0.39187139,2670.7,2670.6,4.52707]
[1727514264382,0.77839991,2671.1,2670.6,0.7826]
[1727514264544,5.74365,2671.2,2670.8,4.20166021]
[1727514264740,0.39187877,2670.9,2670.8,4.20166021]
[1727514264986,5.74365,2671.2,2670.8,4.20166021]
[1727514265182,6.13550331,2671.2,2670.8,4.20166021]
[1727514266060,0.39185331,2671.2,2670.8,4.20166021]
[1727514266492,0.39185331,2671.2,2670.8,7.94585021]
[1727514266677,0.39185331,2671.2,2670.9,0.7826]
[1727514269617,0.39185331,2671.2,2671.1,4.52637]
[1727514270124,2.0,2671.5,2671.1,0.7826]
[1727514270835,5.74325,2671.5,2671.1,0.7826]
[1727514270982,3.74359,2671.3,2671.1,0.7826]
[1727514271523,3.74347,2671.4,2671.1,0.7826]
[1727514271924,3.7435,2671.3,2671.1,0.7826]
[1727514272219,3.74335,2671.4,2671.1,0.7826]
[1727514272419,7.4868,2671.4,2671.1,0.7826]
[1727514272630,3.74354,2671.3,2671.1,0.7826]
[1727514272818,3.74363,2671.2,2671.1,0.7826]
[1727514273127,3.74363,2671.2,2670.7,0.7796]
[1727514273292,3.74363,2671.2,2670.7,4.52383]
[1727514273694,3.74335,2671.4,2670.8,3.74417]
[1727514273894,3.74354,2671.3,2670.8,3.74417]
[1727514274194,3.74352,2671.3,2670.9,0.7796]
[1727514278527,3.74335,2671.4,2670.9,0.7796]
[1727514278709,3.74353,2671.3,2670.9,0.7796]
[1727514279528,3.74365,2671.2,2670.9,0.7796]
[1727514280646,3.74368,2671.2,2670.9,0.7796]
[1727514281150,2.0,2671.5,2670.9,0.7796]
[1727514281457,3.74464,2670.5,2670.3,0.7796]
[1727514281658,3.7449,2670.3,2670.0,0.7796]
[1727514282602,3.74499,2670.3,2669.8,0.7796]
[1727514282804,5.41906021,2670.5,2669.8,0.7796]
[1727514283016,3.74527,2670.1,2669.8,0.7796]
[1727514283644,3.7454,2670.0,2669.8,0.7796]
[1727514284933,3.7454,2670.0,2669.5,0.7796]
[1727514285532,3.74546,2669.9,2669.5,0.7796]
[1727514286431,7.491,2669.9,2669.5,0.7796]
[1727514286746,3.74582,2669.7,2669.5,0.7796]
[1727514286963,3.74655,2669.2,2668.6,4.52674]
[1727514287253,3.7468,2669.0,2668.6,0.7796]
[1727514287449,3.74697,2668.9,2668.2,4.56233]
[1727514287607,4.5656,2669.0,2668.2,4.56233]
[1727514287608,3.7468,2669.0,2668.2,4.56233]
[1727514288108,3.7468,2669.0,2668.4,3.74748]
[1727514288651,3.74686,2668.9,2668.3,3.74769]
[1727514289035,3.74703,2668.8,2668.2,4.56241]
[1727514289711,3.74718,2668.7,2668.2,4.56241]
[1727514289909,3.74718,2668.7,2668.2,0.8146]
[1727514290330,5.41906021,2669.2,2668.2,0.8146]
[1727514290331,3.74675,2669.0,2668.2,0.8146]
[1727514290514,3.74675,2669.0,2668.4,3.7475]
[1727514291005,3.74649,2669.2,2668.6,0.7843]
[1727514291208,7.49306,2669.2,2668.6,0.7843]
[1727514291547,3.74649,2669.2,2668.6,0.7843]
[1727514291848,3.74649,2669.2,2668.6,4.53147]
[1727514292623,3.74621,2669.4,2668.6,4.53147]
[1727514292819,3.74646,2669.2,2668.6,0.7843]
[1727514293647,3.74621,2669.4,2668.7,3.74705]
[1727514293943,3.74621,2669.4,2668.6,4.53148]
[1727514294159,3.74621,2669.4,2668.7,3.74703]
[1727514294307,7.4919,2669.6,2668.9,3.74683]
[1727514294508,3.74621,2669.4,2669.0,0.7843]
[1727514295474,3.74645,2669.2,2669.0,0.7843]
[1727514295830,7.49299,2669.2,2669.0,0.7843]
[1727514296029,3.74666,2669.1,2668.6,0.7843]
[1727514297930,3.74682,2669.0,2668.6,0.7843]
[1727514298130,3.74675,2669.0,2668.6,0.7843]
[1727514298672,3.74722,2668.7,2668.5,0.3293]
[1727514301233,3.74728,2668.6,2668.5,0.3293]
[1727514301543,6.55248,2668.6,2668.5,0.3293]
[1727514301935,5.74728,2668.6,2668.5,0.3293]
[1727514309056,6.55248,2668.6,2668.5,0.3293]
[1727514312260,9.97948198,2668.6,2668.5,0.3293]
[1727514312465,2.0,2668.6,2668.5,0.3293]
[1727514312655,3.74722,2668.7,2668.5,0.3293]
[1727514312855,3.79728006,2668.6,2668.5,0.3293]
[1727514313055,5.79728006,2668.6,2668.5,0.3293]
[1727514315243,3.42700198,2668.9,2668.5,0.3293]
[1727514315244,7.49414,2668.8,2668.5,0.3293]
[1727514315448,0.05000006,2668.7,2668.5,0.3293]
[1727514315658,3.79724006,2668.7,2668.5,0.3293]
[1727514316292,6.56788,2668.6,2668.5,0.3293]
[1727514316454,6.61788006,2668.6,2668.5,0.3293]
[1727514320212,9.61788006,2668.6,2668.5,0.3293]
[1727514320417,9.56788,2668.6,2668.5,0.3293]
[1727514321390,10.15569579,2668.6,2668.5,0.3293]
[1727514321570,25.3927387,2668.6,2668.5,0.3293]
[1727514321775,20.43535894,2668.6,2668.5,0.3293]
[1727514322189,21.67535894,2668.6,2668.5,0.3293]
[1727514322388,21.67535894,2668.6,2666.8,0.7952]
[1727514322389,12.17596198,2667.4,2666.8,0.7952]
[1727514323179,14.23656198,2667.4,2666.2,0.01226774]
[1727514323426,3.75026,2666.5,2666.3,0.7452]
[1727514323591,3.42700198,2666.4,2666.3,0.7452]
[1727514323788,3.42700198,2666.4,2666.2,0.01226774]
[1727514323988,3.80051006,2666.3,2666.2,0.01226774]
[1727514324221,0.05000006,2666.3,2666.2,0.01226774]
[1727514324529,4.57111,2666.3,2666.2,0.01226774]
[1727514324818,3.75051,2666.3,2666.2,0.01226774]
[1727514325003,7.17751198,2666.3,2666.2,0.01226774]
[1727514325935,10.17751198,2666.3,2666.2,0.01226774]
[1727514326104,10.99811198,2666.3,2666.2,0.01226774]
[1727514326305,11.79739019,2666.3,2666.2,0.01226774]
[1727514327443,2.0,2666.5,2666.2,0.01226774]
[1727514328035,5.75025,2666.5,2666.2,0.01226774]
[1727514328203,3.75038,2666.4,2666.2,0.01226774]
[1727514328609,2.0,2666.5,2666.2,0.01226774]
[1727514328850,5.75026,2666.5,2666.2,0.01226774]
[1727514329004,2.0,2666.5,2666.2,0.01226774]
[1727514329697,3.75044,2666.4,2666.2,0.01226774]
[1727514329993,3.75051,2666.3,2666.2,0.01226774]
[1727514330420,4.57104,2666.4,2666.2,0.01226774]
[1727514331035,3.75044,2666.4,2666.2,0.01226774]
[1727514331611,3.75051,2666.3,2666.2,0.01226774]
[1727514331795,0.08821665,2666.3,2666.2,0.01226774]
[1727514332139,3.75048,2666.4,2666.2,0.01226774]
[1727514332503,3.75051,2666.3,2666.2,0.01226774]
[1727514332916,3.7505,2666.4,2666.2,0.01226774]
[1727514333114,3.75051,2666.3,2666.2,0.01226774]
[1727514333900,12.35299019,2666.3,2666.2,0.01226774]
[1727514334148,23.94236819,2666.3,2666.2,0.01226774]
[1727514334312,15.76019019,2666.3,2666.2,0.01226774]
[1727514334511,12.35299019,2666.3,2666.2,0.01226774]
[1727514334833,7.57671,2666.3,2666.2,0.01226774]
[1727514335510,7.6581828,2666.3,2666.2,0.01226774]
[1727514335709,11.88446299,2666.3,2666.2,0.01226774]
[1727514335952,0.0814728,2666.3,2666.2,0.01226774]
[1727514336243,2.3877262,2666.5,2666.2,0.01226774]
[1727514336244,2.0,2666.5,2666.2,0.01226774]
[1727514336945,5.75031,2666.5,2666.2,0.01226774]
[1727514337238,0.3925237,2666.4,2666.2,0.01226774]
[1727514337439,3.75051,2666.3,2666.2,0.01226774]
[1727514337640,0.3925237,2666.4,2666.2,0.01226774]
[1727514338007,4.1429837,2666.4,2666.2,0.01226774]
[1727514338203,3.75051,2666.3,2666.2,0.01226774]
[1727514338450,6.75051,2666.3,2666.2,0.01226774]
[1727514339148,6.82299865,2666.3,2666.2,0.01226774]
[1727514342019,7.21053705,2666.3,2666.2,0.01226774]
[1727514345856,13.56198505,2666.3,2666.2,0.01226774]
[1727514346157,14.33268505,2666.3,2666.2,0.01226774]
[1727514346313,14.88268505,2666.3,2666.2,0.01226774]
[1727514347219,14.88268505,2666.3,2666.2,0.00116651]
[1727514347965,19.10896524,2666.3,2666.2,0.00116651]
[1727514349025,19.8823728,2666.3,2666.2,0.00116651]